Cogmind - Beta 11 *** ADVENTURER MODE // 2022.03.22 @ 21:51:08 Player: dNp Result: Self-destructed Performance ------------- Evolutions (3) 1500 Regions Visited (7) 1400 Robots Destroyed (66) 330 Value Destroyed (1689) 1689 Prototype IDs (2) 40 Alien Tech Used (0) 0 Bonus (0) 0 TOTAL SCORE: 4959 Bonus ------- None Cogmind --------- Core Integrity 505/700 Matter 227/300 Energy 94/100 System Corruption 0% Temperature Cool (0) Movement Hovering (56) Location -7/Factory Parts ------- > --- POWER (1) -------- (None) > --- PROPULSION (5) --- Improved Hover Unit Gravmag System Gravmag System > --- UTILITY (5) ------ Improved Targeting Computer > --- WEAPON (2) ------- (None) > --- INVENTORY (5) ---- Light Fission Core Carbon-fiber Leg Weight Redist. System Peak State ------------ > --- POWER ------------ Micro Nuclear Core > --- PROPULSION ------- Carbon-fiber Leg Carbon-fiber Leg Carbon-fiber Leg Carbon-fiber Leg Titanium Leg > --- UTILITY ---------- Large Storage Unit Advanced Visual Processing Unit Improved Signal Interpreter Targeting Computer > --- WEAPON ----------- Enhanced Autogun Gauss Rifle > --- INVENTORY -------- Light Fission Core Improved Aluminum Leg Carbon-fiber Leg Improved Hover Unit Improved Hover Unit Gravmag System Cooling System Small Storage Unit Weight Redist. System ECM Suite Hacking Suite Particle Gun High-powered Shotgun Mining Laser [Rating: 38] Favorites ----------- Power Improved Ion Engine Engine Improved Ion Engine Power Core Micro Nuclear Core Propulsion Aluminum Leg Leg Aluminum Leg Hover Unit Gravmag System Utility Signal Interpreter Device Sensor Array Storage Small Storage Unit Processor Signal Interpreter Protection Medium Armor Plating Weapon Heavy Assault Rifle Energy Gun Beam Rifle Ballistic Gun Heavy Assault Rifle Build | -11 -10 -9 -9 -9 -8 -8 -7 ------- Run | Scr Mat Mat Min Exi Min Mat Fac Slots Evolved 6 | . . 2 . . . 2 2 Power . | . . . . . . . . Propulsion 3 | . . 1 . . . 1 1 Utility 3 | . . 1 . . . 1 1 Weapon . | . . . . . . . . Parts Attached 64 | 6 5 11 . . 11 24 7 Power 7 | 1 1 2 . . . 2 1 Engine 6 | 1 1 2 . . . 2 . Core 1 | . . . . . . . 1 Reactor . | . . . . . . . . Propulsion 30 | 2 2 5 . . 7 9 5 Treads . | . . . . . . . . Leg 26 | 2 2 5 . . 7 9 1 Wheel . | . . . . . . . . Hover 4 | . . . . . . . 4 Flight . | . . . . . . . . Utility 16 | 2 1 2 . . 3 7 1 Device 4 | 1 . 1 . . . 2 . Storage 2 | 1 . . . . . 1 . Processor 5 | . 1 . . . 1 2 1 Hackware . | . . . . . . . . Protection 5 | . . 1 . . 2 2 . Artifact . | . . . . . . . . Weapon 11 | 1 1 2 . . 1 6 . Energy Gun 2 | . 1 1 . . . . . Energy Cannon . | . . . . . . . . Ballistic Gun 9 | 1 . 1 . . 1 6 . Ballistic Cannon . | . . . . . . . . Launcher . | . . . . . . . . Special Weapon . | . . . . . . . . Impact Weapon . | . . . . . . . . Slashing Weapon . | . . . . . . . . Piercing Weapon . | . . . . . . . . Special Melee Weapon . | . . . . . . . . Unidentified Prototypes 2 | . . . . . . 2 . Parts Lost 5 | . 1 . . . 1 3 . Power . | . . . . . . . . Propulsion 1 | . . . . . . 1 . Utility 4 | . 1 . . . 1 2 . Weapon . | . . . . . . . . Highest Loss Streak 1 | . 1 . . . 1 1 . To Critical Strikes . | . . . . . . . . Average Slot Usage (%) 90 | . 85 99 100 100 100 98 18 Engine 9 | . 14 11 11 11 11 9 . Leg 30 | . 28 33 33 33 33 35 5 Device 4 | . 4 2 11 11 3 2 . Storage 9 | . 14 11 11 11 11 9 1 Processor 14 | . 2 11 11 11 17 21 5 Protection 1 | . . 7 . . . 2 . Energy Gun 4 | . 7 11 11 11 4 . . Ballistic Gun 14 | . 14 11 11 11 17 18 2 Naked Turns 186 | . . . . . . . 186 Heaviest Build 37 | 12 12 25 19 19 25 37 34 Greatest Support 77 | 20 20 30 30 30 41 64 77 Greatest Overweight (x) 1 | 1 . . . . . . . Average Overweight (x) . | . . . . . . . . Largest Inventory Capacity 15 | 8 8 8 8 8 8 15 15 Average Capacity 9 | 7 8 8 8 8 8 14 6 Most Carried 15 | . 3 8 7 7 8 15 15 Average Carried 7 | . 1 5 6 6 7 12 5 Final Capacity 15 | 8 8 8 8 8 8 15 5 Final Carried 15 | . 3 6 7 7 8 15 3 Class Distribution -------------------- 75% | Scavenger-Mutant 17% | Mutant 6% | Scavenger-Skirmisher Dominant Class ---------------- Mutant | -10/Materials Scavenger-Mutant | -9/Materials Scavenger-Mutant | -9/Mines Scavenger-Mutant | -9/Exiles Scavenger-Mutant | -8/Mines Scavenger-Mutant | -8/Materials Mutant | -7/Factory Resources | -11 -10 -9 -9 -9 -8 -8 -7 ----------- Run | Scr Mat Mat Min Exi Min Mat Fac Matter Collected 1468 | 272 81 166 39 . 232 637 41 Remotely . | . . . . . . . . Salvage Created 2311 | 91 227 323 67 . 446 1116 41 Parts 162 | 9 12 22 6 . 25 84 4 Haulers Intercepted 2 | . 1 . . . . 1 . Recyclers Shooed 4 | . 1 . . . . 2 1 Parts Field Recycled . | . . . . . . . . Retrieved Matter . | . . . . . . . . Parts Self-Destructed . | . . . . . . . . Prevented . | . . . . . . . . Kills | -11 -10 -9 -9 -9 -8 -8 -7 ------- Run | Scr Mat Mat Min Exi Min Mat Fac Combat Hostiles Destroyed 43 | . 3 8 3 . 10 18 1 Guns 43 | . 3 8 3 . 10 18 1 Classes Destroyed 14 | 2 4 5 . . 2 . 1 Worker 7 | . 1 1 . . 2 3 . Builder 4 | . . 1 . . . 3 . Tunneler 3 | 2 . . 1 . . . . Hauler 2 | . 1 . . . . 1 . Recycler 2 | 1 . . . . . 1 . Operator 2 | . . 1 . . . 1 . Watcher 3 | . 1 1 . . . 1 . Swarmer 13 | . . 3 3 . 3 4 . Grunt 16 | . 3 3 . . 5 5 . Brawler 1 | . . 1 . . . . . Duelist 1 | . . . . . 1 . . Sentry 8 | . . 1 . . . 7 . Hunter 3 | . . . . . 1 2 . Programmer 1 | . . . . . . . 1 Best Kill Streak 5 | 2 3 4 4 . 3 5 1 Combat Bots Only 5 | . 2 3 3 . 3 5 1 Max Kills in Single Turn 2 | 1 1 2 1 . 1 1 1 Gunslinging . | . . . . . . . . Exploded . | . . . . . . . . Melee . | . . . . . . . . Uniques/NPCs Destroyed . | . . . . . . . . Combat | -11 -10 -9 -9 -9 -8 -8 -7 -------- Run | Scr Mat Mat Min Exi Min Mat Fac Damage Taken 1841 | . 271 397 54 . 320 567 232 Core 512 | . 39 106 20 . 37 115 195 Absorbed by Shields . | . . . . . . . . Core Remaining (%) 80 | 100 84 . . . 59 79 . Volleys Fired 190 | 12 48 24 9 . 25 69 3 Largest 2 | 1 2 2 2 . 2 2 2 Hottest 79 | 20 60 79 79 . 79 56 53 Shots Fired 330 | 12 58 48 18 . 50 138 6 Gun 330 | 12 58 48 18 . 50 138 6 Cannon . | . . . . . . . . Launcher . | . . . . . . . . Special . | . . . . . . . . Kinetic 275 | 12 48 24 9 . 38 138 6 Thermal 55 | . 10 24 9 . 12 . . Explosive . | . . . . . . . . Electromagnetic . | . . . . . . . . Robot Hit Streak 17 | 10 16 10 3 . 9 17 7 Robot Miss Streak 3 | 2 1 2 2 . 1 3 . Penetration Max 1 | . . . . . 1 1 . Secondary Targets 4 | . . . 2 . 1 1 . Max Gunslinging Chain 1 | . . . 1 . 1 1 . Shots Hit Robots 241 | 10 45 30 9 . 40 101 6 Core Hits 112 | 5 17 16 4 . 21 47 2 Critical Kills 3 | . . . . . 1 2 . Critical Parts Destroyed 1 | . . . . . . 1 . Critical Strikes 5 | . . . . . 2 3 . Burn 1 | . . . . . 1 . . Destroy 4 | . . . . . 1 3 . Melee Attacks . | . . . . . . . . Impact . | . . . . . . . . Slashing . | . . . . . . . . Piercing . | . . . . . . . . Sneak Attacks . | . . . . . . . . Combat Hostiles . | . . . . . . . . Follow-up Attacks . | . . . . . . . . Damage Inflicted 3648 | 85 395 438 139 . 628 1825 138 Guns 3643 | 85 395 438 139 . 628 1825 133 Cannons . | . . . . . . . . Explosions . | . . . . . . . . Melee . | . . . . . . . . Ramming 5 | . . . . . . . 5 Kinetic 3135 | 85 338 192 51 . 511 1825 133 Thermal 508 | . 57 246 88 . 117 . . Explosive . | . . . . . . . . Electromagnetic . | . . . . . . . . Impact . | . . . . . . . . Slashing . | . . . . . . . . Piercing . | . . . . . . . . Highest Corruption . | . . . . . . . . Average Corruption . | . . . . . . . . Corruption Purged . | . . . . . . . . Corruption Blocked . | . . . . . . . . Overload Shots . | . . . . . . . . Overflow Damage . | . . . . . . . . Projectiles . | . . . . . . . . Explosions . | . . . . . . . . Melee . | . . . . . . . . Knockbacks . | . . . . . . . . Impact . | . . . . . . . . Kinetic . | . . . . . . . . Secondary . | . . . . . . . . Self-Inflicted Damage 2 | . . . . . . . 2 Shots . | . . . . . . . . Rammed 2 | . . . . . . . 2 Targets Rammed 2 | . . . . . . . 2 Kicked . | . . . . . . . . Crushed . | . . . . . . . . Highest Temperature 105 | . 58 105 96 . 85 4 . Average Temperature 28 | . 21 32 45 . 27 3 . Received Heat Transfer 816 | . 243 201 . . 99 180 93 Siege Activations . | . . . . . . . . Robots Corrupted . | . . . . . . . . Combat Hostiles . | . . . . . . . . Parts Fried . | . . . . . . . . Impact Corruptions . | . . . . . . . . Robots Melted . | . . . . . . . . Combat Hostiles . | . . . . . . . . Parts Melted 3 | . . 2 . . 1 . . Heat Transferred 1323 | . 125 606 222 . 370 . . Parts Sabotaged . | . . . . . . . . Parts Stolen . | . . . . . . . . Parts Stripped . | . . . . . . . . Power Chain Reactions . | . . . . . . . . Missiles Intercepted . | . . . . . . . . Alert | -11 -10 -9 -9 -9 -8 -8 -7 ------- Run | Scr Mat Mat Min Exi Min Mat Fac Peak Influence 361 | 15 120 361 193 . 174 271 195 Initial 118 | . 8 43 118 . . . 105 Average 112 | 4 57 200 173 . 76 110 160 Maximum Alert Level 1 | . . 1 . . . 1 . Low Security (%) 90 | 100 100 40 100 . 100 91 100 Level 1 9 | . . 59 . . . 8 . Level 2 . | . . . . . . . . Level 3 . | . . . . . . . . Level 4 . | . . . . . . . . Level 5 . | . . . . . . . . High Security . | . . . . . . . . Max Security . | . . . . . . . . Squads Dispatched 6 | . . 3 . . . 2 1 Investigation 1 | . . . . . . 1 . Extermination 1 | . . . . . . . 1 Reinforcement 4 | . . 3 . . . 1 . Assault . | . . . . . . . . Garrison . | . . . . . . . . Intercept . | . . . . . . . . Searches Triggered . | . . . . . . . . Construction Impeded . | . . . . . . . . Haulers Reinforced . | . . . . . . . . Active Scanning Responses . | . . . . . . . . Cargo Convoy Interrupts . | . . . . . . . . Stealth | -11 -10 -9 -9 -9 -8 -8 -7 --------- Run | Scr Mat Mat Min Exi Min Mat Fac Distress Signals 3 | . . 2 . . . 1 . Communications Jammed . | . . . . . . . . Distress Signals . | . . . . . . . . Times Spotted 70 | . 8 16 3 . 11 26 6 Peak Tracking Total 6 | . 3 6 3 . 3 6 5 Tactical Retreats 4 | . . 2 . . 1 . 1 Traps | -11 -10 -9 -9 -9 -8 -8 -7 ------- Run | Scr Mat Mat Min Exi Min Mat Fac Traps Triggered 1 | . . . . . . 1 . Indirectly . | . . . . . . . . Trap Hack Attempts . | . . . . . . . . Triggered . | . . . . . . . . Disarmed . | . . . . . . . . Reprogrammed . | . . . . . . . . Reused . | . . . . . . . . Traps Extracted . | . . . . . . . . Installed . | . . . . . . . . Triggered . | . . . . . . . . Machines | -11 -10 -9 -9 -9 -8 -8 -7 ---------- Run | Scr Mat Mat Min Exi Min Mat Fac Machines Disabled 4 | . . . . . 1 3 . Max in Single Turn 1 | . . . . . 1 1 . Garrison Access 2 | . . . . . . 1 1 Machines Sabotaged . | . . . . . . . . Garrisons Compromised . | . . . . . . . . Overloaded Fab Kills . | . . . . . . . . Hacking | -11 -10 -9 -9 -9 -8 -8 -7 --------- Run | Scr Mat Mat Min Exi Min Mat Fac Machines Accessed 8 | . 3 1 . 1 . 2 1 Terminals 4 | . 3 1 . . . . . Fabricators . | . . . . . . . . Repair Stations . | . . . . . . . . Recycling Units 1 | . . . . . . 1 . Scanalyzers . | . . . . . . . . Garrison Access 2 | . . . . . . 1 1 Total Hacks 39 | . 4 3 . 23 . 6 3 Successful 33 | . 3 2 . 23 . 4 1 Failed 6 | . 1 1 . . . 2 2 Catastrophic 1 | . . . . . . . 1 Database Lockouts . | . . . . . . . . Manual 3 | . 1 2 . . . . . Terminals 7 | . 4 3 . . . . . Fabricators . | . . . . . . . . Repair Stations . | . . . . . . . . Recycling Units 3 | . . . . . . 3 . Scanalyzers . | . . . . . . . . Garrison Access 6 | . . . . . . 3 3 Terminal Hacks 28 | . 3 2 . 23 . . . Record 23 | . . . . 23 . . . Emergency Access Points 1 | . . 1 . . . . . Locate Traps 4 | . 3 1 . . . . . Fabricator Hacks . | . . . . . . . . Repair Station Hacks . | . . . . . . . . Recycling Unit Hacks 3 | . . . . . . 3 . Process 1 | . . . . . . 1 . Report Inventory 1 | . . . . . . 1 . Retrieve Matter 1 | . . . . . . 1 . Scanalyzer . | . . . . . . . . Garrison Access Hacks 2 | . . . . . . 1 1 Seal Access 2 | . . . . . . 1 1 Unauthorized Hacks . | . . . . . . . . Terminals . | . . . . . . . . Fabricators . | . . . . . . . . Repair Stations . | . . . . . . . . Recycling Units . | . . . . . . . . Scanalyzers . | . . . . . . . . Garrison Access . | . . . . . . . . Data Cores Recovered . | . . . . . . . . Used . | . . . . . . . . Hacking Detections 5 | . 2 1 . . . 1 1 Full Trace Events 1 | . . . . . . 1 . Feedback Events . | . . . . . . . . Feedback Blocked . | . . . . . . . . Robot Schematics Acquired . | . . . . . . . . Robots Built . | . . . . . . . . Authchips . | . . . . . . . . Time . | . . . . . . . . Total Robot Build Rating . | . . . . . . . . Part Schematics Acquired . | . . . . . . . . Parts Built . | . . . . . . . . Authchips . | . . . . . . . . Time . | . . . . . . . . Total Part Build Rating . | . . . . . . . . Parts Repaired . | . . . . . . . . Time . | . . . . . . . . Parts Recycled . | . . . . . . . . Recycled Matter 121 | . . . . . . 121 . Retrieved Matter 84 | . . . . . . 84 . Retrieved Components . | . . . . . . . . Parts Scanalyzed . | . . . . . . . . Part Schematics Acquired . | . . . . . . . . Parts Damaged . | . . . . . . . . Bothacking | -11 -10 -9 -9 -9 -8 -8 -7 ------------ Run | Scr Mat Mat Min Exi Min Mat Fac Used RIF Installer . | . . . . . . . . Robots Hacked . | . . . . . . . . Non-combat . | . . . . . . . . Combat . | . . . . . . . . Robot Hacks Applied . | . . . . . . . . Relay Couplers Released . | . . . . . . . . Fabnet Peak Effective % . | . . . . . . . . Robots Rewired . | . . . . . . . . Allies Hacked . | . . . . . . . . Hacks Repelled . | . . . . . . . . Allies | -11 -10 -9 -9 -9 -8 -8 -7 -------- Run | Scr Mat Mat Min Exi Min Mat Fac Total Allies 3 | . . . 3 . . . . Largest Group 3 | . . . 3 3 . . . Highest-Rated Group 75 | . . . 75 75 . . . Highest-Rated Ally 31 | . . . 31 31 . . . Total Orders . | . . . . . . . . Ally Attacks . | . . . . . . . . Total Damage . | . . . . . . . . Kills . | . . . . . . . . Allies Corrupted . | . . . . . . . . Allies Melted . | . . . . . . . . Intel | -11 -10 -9 -9 -9 -8 -8 -7 ------- Run | Scr Mat Mat Min Exi Min Mat Fac Robot Analysis Total . | . . . . . . . . Derelict Logs Recovered . | . . . . . . . . Drone Launches . | . . . . . . . . Drone Recoveries . | . . . . . . . . Exploration | -11 -10 -9 -9 -9 -8 -8 -7 ------------- Run | Scr Mat Mat Min Exi Min Mat Fac Turns Passed 3698 | 92 306 363 225 368 906 1107 331 Spaces Moved 2746 | 54 168 207 149 306 671 648 543 Core 458 | 8 . . . . . . 450 Treads . | . . . . . . . . Legs 2222 | 46 168 207 149 306 671 648 27 Wheels . | . . . . . . . . Hover 66 | . . . . . . . 66 Flight . | . . . . . . . . Fastest Speed 50 | 50 120 120 120 120 120 120 50 Average Speed 107 | 115 120 120 120 120 120 121 54 Slowest Speed 125 | 120 120 120 120 120 120 125 122 Overloaded Moves . | . . . . . . . . Propulsion Burnouts . | . . . . . . . . Robots Hopped . | . . . . . . . . Cave-ins Triggered . | . . . . . . . . Exploration Rate (%) 41 | 4 41 26 32 76 96 39 15 Regions Visited 7 Branch Regions 3 Pre-discovered Areas 1 | . . . . 1 . . . Known Exits Taken 6 | . 1 1 1 1 1 1 . Unknown Exits Taken 1 | 1 . . . . . . . Scrap Searched 1 | . . . . . 1 . . Spaces Dug . | . . . . . . . . Terrain Destroyed 1 | . . . . . . 1 . Melee . | . . . . . . . . Projectile 1 | . . . . . . 1 . AOE . | . . . . . . . . Terrain Rammed . | . . . . . . . . Walls Destroyed . | . . . . . . . . Machines Disabled . | . . . . . . . . Actions | -11 -10 -9 -9 -9 -8 -8 -7 --------- Run | Scr Mat Mat Min Exi Min Mat Fac Total 3174 | 71 221 273 177 307 723 828 574 Wait 117 | . 1 24 19 . 7 52 14 Move 2739 | 53 167 206 148 305 670 647 543 Hop . | . . . . . . . . Pick Up 23 | . . 2 1 1 2 15 2 Fast Attach 16 | 6 2 1 . . 1 3 3 Attach 11 | . . 1 . . 1 5 4 Detach 1 | . . . . . . . 1 Swap 38 | . 3 9 . . 9 17 . Drop 37 | . . 6 . 1 8 20 2 Fire 190 | 12 48 24 9 . 25 69 3 Melee . | . . . . . . . . Ram 2 | . . . . . . . 2 Kick . | . . . . . . . . Crush . | . . . . . . . . Escape Stasis . | . . . . . . . . Rewire . | . . . . . . . . Trap . | . . . . . . . . Miscellaneous . | . . . . . . . . Route ------- -11/Scrapyard -10/Materials -9/Materials (discovered 2 exits: *Min / [*Sto]) -9/Mines -9/Exiles -8/Mines (discovered 2 exits: *Mat x2) -8/Materials -7/Factory (discovered 2 exits: [*Fac] / [*Low]) History --------- Turn | Location | Event 7 | -11/Scrapyard | Discovered new exit (range 16) 93 | -11/Scrapyard | Entered Materials 375 | -10/Materials | Discovered new exit (range 9) 398 | -10/Materials | Identified exit to Materials 399 | -10/Materials | Entered another Materials area 399 | -9/Materials | Evolved 2 slots: Propulsion x1, Utility x1 710 | -9/Materials | Discovered new exit (range 15) 732 | -9/Materials | Discovered new exit (range 16) 761 | -9/Materials | Identified exit to Mines 762 | -9/Materials | Entered Mines 872 | -9/Mines | Build established: Scavenger-Mutant 874 | -9/Mines | Received a Mining Laser from a helpful Derelict 976 | -9/Mines | Deemed a non-threat by the Exiles lab entrance 977 | -9/Mines | Discovered new exit (range 5) 982 | -9/Mines | Identified exit to Exiles 987 | -9/Mines | Entered Exiles 987 | -9/Exiles | Accompanied by 3 allies 1017 | -9/Exiles | Led the pair of lost Derelicts to a safe place 1019 | -9/Exiles | Met 8R-AWN 1042 | -9/Exiles | Met EX-HEX 1096 | -9/Exiles | Met EX-DEC 1151 | -9/Exiles | Visited The Gauntlet 1279 | -9/Exiles | Learned location of Zion (-6) 1339 | -9/Exiles | Discovered new exit (range 14) 1354 | -9/Exiles | Identified exit to Mines 1355 | -9/Exiles | Entered Mines 1748 | -8/Mines | Discovered new exit (range 6) 1961 | -8/Mines | Identified exit to Materials 2031 | -8/Mines | Discovered exit to Materials (range 5) 2261 | -8/Mines | Entered Materials 2261 | -8/Materials | Evolved 2 slots: Propulsion x1, Utility x1 3325 | -8/Materials | Discovered new exit (range 14) 3361 | -8/Materials | Identified exit to Factory 3368 | -8/Materials | Entered Factory 3368 | -7/Factory | Evolved 2 slots: Propulsion x1, Utility x1 3396 | -7/Factory | Discovered new exit (range 19) 3415 | -7/Factory | Released all parts (12) 3427 | -7/Factory | Discovered new exit (range 11) 3699 | -7/Factory | Self-destructed Last Messages --------------- 03415_ Released Targeting Computer. 03415_ Released Gauss Rifle. 03415_ Released Carbon-fiber Leg. 03415_ Released Titanium Leg. 03415_ Released Lrg. Storage Unit. 03415_ Released Adv. Visual Processing Unit. 03415_ Released Carbon-fiber Leg. 03415_ Released Imp. Signal Interpreter. 03415_ Released Carbon-fiber Leg. 03416_ K-01 Serf collects debris. 03427_ EXIT=FOUND 03480_ Connecting with Terminal... 03602_ Acquired Imp. Targeting Computer. 03626_ U-05 Engineer destroyed. 03629_ Slammed into R-06 Scavenger. 03642_ Connecting with Garrison Access... >>Seal Access door sealed. 03655_ Acquired Gravmag System. 03693_ ALERT: Rogue bot located, Programmers report to Factory Zone 4T. Map ----- +----------------------------------------------------+ | ?????????????????????????????????????????????????? | | ?????????????????????????????????????????????????? | | ?????????????????????????????????????????????????? | | ?????????????????????????????????????????????????? | | ?????????????????????????????????????????????????? | | ?????????????????????????????????????????????????? | | ?????????????????????????????????????????????????? | | ?????????????????????????????????????????????????? | | ?????????????????????????????????????????????????? | | ?????????????????????????????????????????????????? | | ?????????????????????????????????????????????????? | | ?????????????????????????????????????????????????? | | ?????????????????????????????????????????????????? | | ?????????????????????????????????????????????????? | | ?????????????????????????????????????????????????? | | ?????????????????????????????????????????????????? | | ?????????????????????????????????????????????????? | | ???????????????????###########???????????????????? | | ???????????????????# """"""" #?????????#######???? | | ???????????????????# """"""" ########### #???? | | ???????????????????# """"""" # # #???? | | ???????????????????# """"""" # """ + #???# | | ???????????????????# # """ "Y" # #???# | | ???????????????????# = # """ " " # #???# | | ???????????????????#| [# """ ### ###???# | | ???????????????????# @ # "" #?# ####### | | ???????????????#########g##### "" #?# # *# | | ????????? + #?# # # | | ????????????????######## ###########?# # # | | ???????????????????????# ############# # ""# | | ???????????????????????# + ""# | | ???????????????????????################### # ! G# | | ?????????????????????????????????????????# # ""# | | ?????????????????????????????????????????# # ""# | | ?????????????????????????????????????????# # # | | ?????????????????????????????????????????# ####### | | ?????????????????????????????????????????# | | ?????????????????????????????????????????#### #### | | ????????????????????????????????????????????# #??# | | ????????????????????????????????????????????# #??# | | ????????????????????????????????????????????# #??# | | ????????????????????????????????????????????# #??# | | ????????????????????????????????????????????# #??# | | ????????????????????????????????????????????# #??# | | ????????????????????????????????????????????# #??# | | ????????????????????????????????????????????? ???# | | ????????????????????????????????????????????? ???# | | ????????????????????????????????????????????? ???# | | ????????????????????????????????????????????? ???# | | ?????????????????????????????????????????????#???# | +----------------------------------------------------+ Best States ------------- Heat Dissipation 34 Energy Generation 15 Energy Capacity 265 Matter Stores 300 Matter Capacity 300 Sight Range 20 Robot Scan Range 14 Terrain Scan Density 10 Armor Coverage 225 Resistance: KI 20 Resistance: TH 20 Resistance: EX 20 Resistance: EM 20 Resistance: I 20 Resistance: S 20 Resistance: P 20 Evasion (%) 55 Targeting Accuracy 6 Offensive Hacking 10 Item Schematics ----------------- None Robot Schematics ------------------ None Fabricated ------------ Nothing Alien Tech Used ----------------- None Achievements -------------- None Challenges ------------ None Game ------ Seed MicroGlidesysBooster Manual? 0 Play Time 01:13:00 Cumulative 28.5 hours Start 2022.03.20 @ 07:41:59 End 2022.03.22 @ 21:51:08 Sessions 11 Manual Loads 0 Difficulty Adventurer Special Mode None Game No. 70 Rogue 10 Adventurer 53 Explorer 7 Win Type - Total 0 Types 0/0/0/0/0/0/0/0/0 Lore% 27 Gallery% 33 Achievement% 27 Wizard Run 0 Options --------- ASCII 0 Keyboard 0 Movement Mouse Keybinds 0 Fullscreen 0 Font 32/Terminus Map View 76x50 Tactical HUD 1 Map Filters NONE Filters NONE Steam 1 RUN: 1e834252-f3f0-42ff-a463-96fa4e89e071